lending/lending_fUSD_20260310
["ID","MTS","AMOUNT","RATE_DAILY","PERIOD"]
[408142161,1773169841471,-500.0,0.00019373,2]
[408142162,1773169841481,-500.0,0.00019373,2]
[408142163,1773169841491,-500.0,0.00019373,2]
[408142164,1773169841500,-150.0,0.00019373,2]
[408142165,1773169841510,-500.0,0.00019373,2]
[408142166,1773169841519,-500.0,0.00019373,2]
[408142167,1773169841530,-500.0,0.00019373,2]
[408142168,1773169841539,-500.0,0.00019373,2]
[408142169,1773169841548,-500.0,0.00019373,2]
[408142170,1773169841557,-500.0,0.00019373,2]
[408142171,1773169841566,-338.5975808,0.00019373,2]
[408142172,1773169841575,-500.19685753,0.00019373,2]
[408142173,1773169841584,-500.0,0.00019373,2]
[408142174,1773169841595,-164.4040302,0.00019373,2]
[408142175,1773169841604,-500.0,0.00019373,2]
[408142176,1773169841613,-500.0,0.00019373,2]
[408142177,1773169841625,-500.0,0.00019373,2]
[408142178,1773169841635,-164.1797662,0.00019373,2]
[408142179,1773169841645,-500.0,0.00019373,2]
[408142180,1773169841659,-162.48933507,0.00019373,2]
[408142181,1773169841677,-500.0,0.00019373,2]
[408142182,1773169841687,-500.30661953,0.00019373,2]
[408142183,1773169841696,-500.0,0.00019373,2]
[408142184,1773169841705,-309.41665429,0.00019373,2]
[408142185,1773169841714,-500.0,0.00019373,2]
[408142186,1773169841723,-500.19933179,0.00019373,2]
[408142187,1773169841733,-438.17886325,0.00019373,2]
[408142188,1773169841742,-158.89335882,0.00019373,2]
[408142189,1773169841751,-500.0,0.00019373,2]
[408142190,1773169841760,-336.48617471,0.00019373,2]
[408142191,1773169841768,-500.0,0.00019373,2]
[408142192,1773169841778,-525.62729725,0.00019373,2]
[408142193,1773169841787,-500.0,0.00019373,2]
[408142194,1773169841796,-500.0,0.00019373,2]
[408142195,1773169841805,-500.0,0.00019373,2]
[408142196,1773169841814,-500.0,0.00019373,2]
[408142197,1773169841823,-311.58893439,0.00019373,2]
[408142198,1773169841832,-555.93722716,0.00019373,2]
[408142199,1773169841841,-162.45092924,0.00019373,2]
[408142200,1773169841850,-166.21138236,0.00019373,2]
[408142201,1773169841859,-500.0,0.00019373,2]
[408142202,1773169841869,-162.16516283,0.00019373,2]
[408142203,1773169841878,-500.0,0.00019373,2]
[408142204,1773169841887,-500.0,0.00019373,2]
[408142205,1773169841896,-500.0,0.00019373,2]
[408142206,1773169841905,-500.24925891,0.00019373,2]
[408142207,1773169841914,-500.17118036,0.00019373,2]
[408142208,1773169841923,-500.0,0.00019373,2]
[408142209,1773169841932,-500.0,0.00019373,2]
[408142210,1773169841941,-500.0,0.00019373,2]
[408142211,1773169841952,-500.0,0.00019373,2]
[408142212,1773169841964,-168.09945814,0.00019373,2]
[408142213,1773169841974,-516.85988717,0.00019373,2]
[408142214,1773169841984,-500.0,0.00019373,2]
[408142215,1773169841993,-500.0,0.00019373,2]
[408142216,1773169842002,-500.0,0.00019373,2]
[408142217,1773169842012,-500.0,0.00019373,2]
[408142218,1773169842022,-500.0,0.00019373,2]
[408142219,1773169842031,-210.17759829,0.00019373,2]
[408142220,1773169842039,-150.0,0.00019373,2]
[408142221,1773169842048,-500.0,0.00019373,2]
[408142222,1773169842058,-500.0,0.00019373,2]
[408142223,1773169842066,-500.0,0.00019373,2]
[408142224,1773169842075,-564.98385943,0.00019373,2]
[408142225,1773169842084,-500.0,0.00019373,2]
[408142226,1773169842093,-500.0,0.00019373,2]
[408142227,1773169842103,-513.88974837,0.00019373,2]
[408142228,1773169842112,-500.0,0.00019384,2]
[408142229,1773169842123,-151.0,0.00019384,2]
[408142230,1773169842132,-857.30624689,0.0001939,2]
[408142231,1773169842142,-941.94,0.00019399,2]
[408142232,1773169842152,-941.94,0.00019399,2]
[408142233,1773169842164,-941.94,0.00019399,2]
[408142234,1773169842173,-941.94,0.00019399,2]
[408142235,1773169842182,-941.94,0.00019399,2]
[408142236,1773169842197,-941.94,0.00019399,2]
[408142237,1773169842206,-941.94,0.00019399,2]
[408142238,1773169842215,-941.94,0.00019399,2]
[408142239,1773169842224,-941.94,0.00019399,2]
[408142240,1773169842233,-941.94,0.00019399,2]
[408142241,1773169842242,-941.94,0.00019399,2]
[408142242,1773169842251,-500.0,0.00019399,2]
[408142243,1773169842260,-516.64002131,0.00019399,2]
[408142244,1773169842269,-500.0,0.00019399,2]
[408142245,1773169842278,-500.0,0.00019399,2]
[408142246,1773169842286,-500.0,0.00019399,2]
[408142247,1773169842295,-500.0,0.00019399,2]
[408142248,1773169842304,-3000.0,0.00019399,2]
[408142249,1773169842314,-3000.0,0.00019399,2]
[408142250,1773169842323,-3000.0,0.00019399,2]
[408142251,1773169842332,-3000.0,0.00019399,2]
[408142252,1773169842343,-3000.0,0.00019399,2]
[408142253,1773169842364,-3000.0,0.00019399,2]
[408142254,1773169842385,-3000.0,0.00019399,2]
[408142255,1773169842394,-3000.0,0.00019399,2]
[408142256,1773169842404,-3000.0,0.00019399,2]
[408142257,1773169842413,-3000.0,0.00019399,2]
[408142258,1773169842422,-3000.0,0.00019399,2]
[408142259,1773169842432,-2500000.0,0.000194,2]
[408142260,1773169842442,-500.0,0.000194,7]
[408142261,1773169842452,-15521.91383076,0.000194,3]
[408142262,1773169842461,-24812.45111482,0.000194,3]
[408142263,1773169842471,-3897.53287856,0.000194,5]
[408142264,1773169842480,-1600.0,0.00019404,2]
[408142265,1773169842489,-178.66,0.00019415,2]
[408142266,1773169842499,-366.86992042,0.0001942,2]
[408142267,1773169842508,-500.0,0.00019439,2]
[408142268,1773169842518,-151.0,0.00019439,2]
[408142269,1773169842528,-268.96748512,0.00019452,2]
[408142270,1773169842538,-500.0,0.00019473,2]
[408142271,1773169842548,-500.0,0.00019473,2]
[408142272,1773169842557,-621.69234867,0.00019473,2]
[408142273,1773169842567,-161.52562053,0.00019473,2]
[408142274,1773169842576,-161.50637135,0.00019473,2]
[408142276,1773169842588,-500.0,0.00019473,2]
[408142277,1773169842598,-210.19245283,0.00019473,2]
[408142281,1773169842608,-500.0,0.00019473,2]
[408142284,1773169842618,-500.0,0.00019473,2]
[408142285,1773169842630,-500.0,0.00019473,2]
[408142289,1773169842642,-150.0,0.00019473,2]
[408142291,1773169842651,-165.86350306,0.00019473,2]
[408142292,1773169842660,-979.94,0.00019482,2]
[408142293,1773169842670,-500.0,0.00019494,2]
[408142294,1773169842679,-151.0,0.00019494,2]
[408142295,1773169842688,-941.94,0.00019499,2]
[408142296,1773169842698,-941.94,0.00019499,2]
[408142297,1773169842708,-3000.0,0.00019499,2]
[408142298,1773169842718,-3000.0,0.00019499,2]
[408142300,1773169842727,-2000.0,0.000195,2]
[408142301,1773169842736,-4206.76415152,0.000195,2]
[408142371,1773169843917,-2461.0,0.00018769,2]
[408142372,1773169843927,-363.78542833,0.00019471,2]
[408142373,1773169843939,-3943.60880936,0.00019471,2]
[408142374,1773169843948,-640405.90284848,0.000195,2]
[408142375,1773169843957,-500.0,0.000195,7]
[408142376,1773169843966,-500.0,0.00019507,7]
[408142377,1773169843975,-533.34,0.0001952,2]
[408142378,1773169843985,-366.86992042,0.0001954,2]
[408142379,1773169843995,-300.0,0.00019547,2]
[408142380,1773169844004,-181.08010149,0.00019547,2]
[408142381,1773169844013,-243.08739965,0.00019547,2]
[408142382,1773169844024,-1000.0,0.00019548,2]
[408142383,1773169844034,-500.0,0.00019549,2]
[408142384,1773169844044,-151.0,0.00019549,2]
[408142385,1773169844054,-350.0,0.00019565,2]
[408142386,1773169844064,-6611.75841182,0.00019566,2]
[408142387,1773169844073,-4153.4138,0.00019566,2]
[408142388,1773169844083,-166.66,0.00019599,2]
[408142389,1773169844092,-941.94,0.00019599,2]
[408142390,1773169844102,-3000.0,0.00019599,2]
[408142391,1773169844111,-1039.8599743,0.000196,2]
[408142392,1773169844120,-1119.35911963,0.000196,2]
[408142393,1773169844133,-1023.06551091,0.000196,2]
[408142394,1773169844142,-1019.81070342,0.000196,2]
[408142395,1773169844151,-1085.42379306,0.000196,2]
[408142396,1773169844161,-1008.80472938,0.000196,2]
[408142397,1773169844170,-1078.90865047,0.000196,2]
[408142398,1773169844179,-1098.87934114,0.000196,2]
[408142399,1773169844191,-1132.50377932,0.000196,2]
[408142400,1773169844200,-1147.66420227,0.000196,2]
[408142401,1773169844210,-1123.0336401,0.000196,2]
[408142402,1773169844219,-1101.09710584,0.000196,2]
[408142403,1773169844229,-1033.86563258,0.000196,2]
[408142404,1773169844240,-1107.35566904,0.000196,2]
[408142405,1773169844250,-1068.51668024,0.000196,2]
[408142406,1773169844259,-1061.81227897,0.000196,2]
[408142407,1773169844268,-1001.8823678,0.000196,2]
[408142408,1773169844277,-1080.1000685,0.000196,2]
[408142409,1773169844287,-1149.53093468,0.000196,2]
[408142410,1773169844295,-1013.16967548,0.000196,2]
[408142411,1773169844304,-1122.00658195,0.000196,2]
[408142412,1773169844314,-1101.63150077,0.000196,2]
[408142413,1773169844325,-1018.13481825,0.000196,2]
[408142414,1773169844335,-1061.26528787,0.000196,2]
[408142415,1773169844344,-1137.78136857,0.000196,2]
[408142416,1773169844353,-1142.99651868,0.000196,2]
[408142417,1773169844362,-1044.55246915,0.000196,2]
[408142418,1773169844372,-1116.10808519,0.000196,2]
[408142419,1773169844381,-1145.46270257,0.000196,2]
[408142420,1773169844390,-1064.29226835,0.000196,2]
[408142421,1773169844400,-292.21,0.000196,30]
[408142422,1773169844409,-1428.35284987,0.000196,2]
[408142423,1773169844419,-1002.98732185,0.000196,2]
[408142424,1773169844428,-1041.96703566,0.000196,2]
[408142425,1773169844437,-1026.9597622,0.000196,2]
[408142426,1773169844447,-1005.77658267,0.000196,2]
[408142427,1773169844456,-1080.57560368,0.000196,2]
[408142428,1773169844465,-1090.58486656,0.000196,2]
[408142429,1773169844475,-1055.47791013,0.000196,2]
[408142430,1773169844484,-1440.38069318,0.000196,2]
[408142431,1773169844494,-1436.70614573,0.000196,5]
[408142432,1773169844503,-500.0,0.000196,7]
[408142433,1773169844514,-296.64564223,0.000196,2]
[408142434,1773169844524,-388.66679332,0.000196,2]
[408142435,1773169844534,-2638.57053931,0.000196,2]
[408142436,1773169844543,-500.0,0.00019604,2]
[408142437,1773169844552,-151.0,0.00019604,2]
[408142438,1773169844562,-290.37,0.00019616,2]
[408142439,1773169844571,-1000.0,0.00019619,2]
[408142440,1773169844583,-250.0,0.00019633,2]
[408142441,1773169844592,-1000.0,0.00019642,2]
[408142442,1773169844602,-168.0,0.0001965,2]
[408142443,1773169844611,-500.0,0.00019659,2]
[408142444,1773169844623,-151.0,0.00019659,2]
[408142445,1773169844632,-250.0,0.0001966,2]
[408142446,1773169844642,-366.86992042,0.0001966,2]
[408142447,1773169844652,-1000.0,0.000197,2]
[408142448,1773169844661,-500.0,0.000197,7]
[408142449,1773169844670,-250.0,0.00019708,2]
[408142450,1773169844679,-325.24,0.00019711,2]
[408142451,1773169844688,-3000.0,0.00019712,2]
[408142452,1773169844697,-500.0,0.00019725,2]
[408142453,1773169844707,-250.0,0.00019726,2]
[408142454,1773169844716,-5164.900926,0.00019726,2]
[408142455,1773169844726,-5164.900926,0.00019726,2]
[408142456,1773169844735,-5164.900926,0.00019726,2]
[408142457,1773169844745,-174.359556,0.00019726,2]
[408142458,1773169844754,-174.359556,0.00019726,2]
[408142459,1773169844765,-500.0,0.00019726,2]
[408142460,1773169844776,-439.8301473,0.00019726,2]
[408142461,1773169844786,-1766.57,0.00019726,2]
[408142462,1773169844796,-1766.57,0.00019726,2]
[408142463,1773169844805,-1766.57,0.00019726,2]
[408142464,1773169844814,-1766.57,0.00019726,2]
[408142465,1773169844824,-1766.57,0.00019726,2]
[408142466,1773169844833,-1766.57,0.00019726,2]
[408142467,1773169844842,-1766.57,0.00019726,2]
[408142468,1773169844852,-1766.57,0.00019726,2]
[408142469,1773169844862,-1766.57,0.00019726,2]
[408142470,1773169844872,-1766.57,0.00019726,2]
[408142471,1773169844882,-1766.57,0.00019726,2]
[408142472,1773169844891,-1766.57,0.00019726,2]
[408142473,1773169844902,-1766.57,0.00019726,2]
[408142474,1773169844912,-1766.57,0.00019726,2]
[408142475,1773169844922,-1766.57,0.00019726,2]
[408142476,1773169844931,-1766.57,0.00019726,2]
[408142477,1773169844941,-1766.57,0.00019726,2]
[408142478,1773169844950,-1766.57,0.00019726,2]
[408142479,1773169844960,-1766.57,0.00019726,2]
[408142480,1773169844969,-1766.57,0.00019726,2]
[408142481,1773169844978,-1766.57,0.00019726,2]
[408142482,1773169844987,-1766.57,0.00019726,2]
[408142483,1773169844996,-1766.57,0.00019726,2]
[408142484,1773169845006,-1766.78298099,0.00019726,2]
[408142485,1773169845015,-500.0,0.00019726,2]
[408142486,1773169845024,-500.5,0.00019726,2]
[408142487,1773169845033,-1162.45,0.00019726,2]
[408142488,1773169845043,-1162.45,0.00019726,2]
[408142489,1773169845052,-1162.45,0.00019726,2]
[408142490,1773169845061,-1162.45,0.00019726,2]
[408142491,1773169845070,-1162.45,0.00019726,2]
[408142492,1773169845079,-1162.45,0.00019726,2]
[408142493,1773169845088,-1162.45,0.00019726,2]
[408142494,1773169845098,-1162.45,0.00019726,2]
[408142495,1773169845107,-1162.45,0.00019726,2]
[408142496,1773169845116,-1162.45,0.00019726,2]
[408142497,1773169845125,-1162.45,0.00019726,2]
[408142498,1773169845135,-1162.45,0.00019726,2]
[408142499,1773169845143,-1162.45,0.00019726,2]
[408142500,1773169845152,-1162.45,0.00019726,2]
[408142501,1773169845162,-1162.45,0.00019726,2]
[408142502,1773169845171,-1162.45,0.00019726,2]
[408142503,1773169845180,-1162.45,0.00019726,2]
[408142504,1773169845189,-1162.45,0.00019726,2]
[408142505,1773169845198,-1162.45,0.00019726,2]
[408142506,1773169845208,-1162.45,0.00019726,2]
[408142507,1773169845217,-1162.45,0.00019726,2]
[408142508,1773169845226,-1162.45,0.00019726,2]
[408142509,1773169845236,-1162.45,0.00019726,2]
[408142510,1773169845245,-1162.6489105,0.00019726,2]
[408142511,1773169845254,-1250.51,0.00019726,2]
[408142512,1773169845264,-1250.51,0.00019726,2]
[408142513,1773169845273,-1250.51,0.00019726,2]
[408142514,1773169845283,-1250.51,0.00019726,2]
[408142515,1773169845292,-1250.51,0.00019726,2]
[408142516,1773169845301,-1250.51,0.00019726,2]
[408142517,1773169845310,-1250.51,0.00019726,2]
[408142518,1773169845319,-1250.51,0.00019726,2]
[408142519,1773169845329,-1250.51,0.00019726,2]
[408142520,1773169845338,-1250.51,0.00019726,2]
[408142521,1773169845347,-1250.51,0.00019726,2]
[408142522,1773169845356,-1250.51,0.00019726,2]
[408142523,1773169845365,-1250.51,0.00019726,2]
[408142524,1773169845375,-1250.51,0.00019726,2]
[408142525,1773169845384,-1250.51,0.00019726,2]
[408142526,1773169845394,-1250.51,0.00019726,2]
[408142527,1773169845403,-1250.51,0.00019726,2]
[408142528,1773169845412,-1250.51,0.00019726,2]
[408142529,1773169845421,-1250.51,0.00019726,2]
[408142530,1773169845430,-1250.51,0.00019726,2]
[408142531,1773169845439,-1250.51,0.00019726,2]
[408142532,1773169845450,-1250.51,0.00019726,2]
[408142533,1773169845459,-1250.51,0.00019726,2]
[408142534,1773169845468,-1250.68103818,0.00019726,2]
[408142535,1773169845477,-3435.719,0.00019726,2]
[408142537,1773169845487,-168.047,0.00019726,2]
[408142539,1773169845496,-500.0,0.00019726,2]
[408142540,1773169845506,-500.0,0.00019726,2]
[408142541,1773169845515,-524.54846384,0.00019726,2]
[408142542,1773169845525,-500.0,0.00019726,2]
[408142543,1773169845535,-500.0,0.00019726,2]
[408142544,1773169845545,-500.0,0.00019726,2]
[408142545,1773169845556,-243.10314305,0.00019726,2]
[408142546,1773169845565,-300.0,0.00019726,2]
[408142547,1773169845575,-300.0,0.00019726,2]
[408142548,1773169845591,-300.0,0.00019726,2]
[408142549,1773169845601,-300.0,0.00019726,2]
[408142550,1773169845612,-300.0,0.00019726,2]
[408142551,1773169845621,-300.0,0.00019726,2]
[408142552,1773169845631,-300.0,0.00019726,2]
[408142553,1773169845642,-300.0,0.00019726,2]
[408142554,1773169845652,-300.0,0.00019726,2]
[408142555,1773169845664,-300.0,0.00019726,2]
[408142556,1773169845673,-300.0,0.00019726,2]
[408142557,1773169845682,-300.0,0.00019726,2]
[408142558,1773169845693,-302.3241753,0.00019726,2]
[408142559,1773169845704,-625.37,0.00019726,2]
[408142560,1773169845713,-4851.15981065,0.00019752,8]
[408142561,1773169845722,-250.0,0.00019757,2]
[408142562,1773169845732,-350.0,0.00019778,3]
[408142563,1773169845741,-366.86992042,0.0001978,2]
[408142564,1773169845750,-500.0,0.00019781,7]
[408142565,1773169845759,-250.0,0.00019788,2]
[408142566,1773169845768,-726.99449,0.000198,2]
[408142567,1773169845778,-726.99449,0.000198,2]
[408142568,1773169845786,-1145.70783,0.000198,2]
[408142569,1773169845795,-541.0,0.000198,7]
[408142570,1773169845804,-250.0,0.000198,2]
[408142571,1773169845814,-196.61,0.00019808,2]
[408142572,1773169845823,-250.0,0.00019822,2]
[408142573,1773169845832,-1000.0,0.00019822,2]
[408142574,1773169845841,-1000.0,0.00019824,2]
[408142576,1773169845851,-178.66,0.0001983,2]
[408142577,1773169845860,-497.0,0.0001983,2]
[408142578,1773169845869,-197.0,0.0001983,2]
[408142579,1773169845878,-1145.70782,0.0001985,2]
[408142580,1773169845887,-250.0,0.00019854,2]
[408142581,1773169845898,-153.36839608,0.00019866,2]
[408142583,1773169845907,-533.34,0.00019872,2]
[408142585,1773169845916,-500.0,0.00019887,2]
[408142586,1773169845925,-500.0,0.00019887,2]
[408142587,1773169845935,-404.44403902,0.00019887,2]
[408142588,1773169845944,-533.34,0.00019887,2]
[408142589,1773169845955,-533.34,0.00019887,2]
[408142590,1773169845965,-500.0,0.00019887,2]
[408142591,1773169845974,-500.0,0.00019887,2]
[408142592,1773169845983,-500.0,0.00019887,2]
[408142593,1773169845993,-250.0,0.00019888,2]
[408142594,1773169846002,-168.0,0.00019896,2]
[408142595,1773169846012,-6611.75841182,0.00019899,2]
[408142596,1773169846112,-4153.4138,0.00019899,2]
[408142597,1773169846124,-1000.0,0.000199,2]
[408142598,1773169846133,-4473.8803,0.000199,2]
[408142599,1773169846142,-930.3724,0.000199,2]
[408142600,1773169846151,-5800.0,0.000199,2]
[408142601,1773169846160,-500.0,0.000199,2]
[408142602,1773169846169,-500.0,0.000199,2]
[408142603,1773169846178,-500.0,0.000199,2]
[408142604,1773169846187,-333.18627222,0.000199,2]
[408142605,1773169846196,-478.92,0.000199,7]
[408142606,1773169846205,-9898.56304388,0.000199,3]
[408142607,1773169846215,-757.9640289,0.000199,2]
[408142608,1773169846227,-1145.70782,0.000199,2]
[408142609,1773169846236,-296.64564223,0.000199,2]
[408142610,1773169846244,-388.66679332,0.000199,2]
[408142611,1773169846254,-2638.57053931,0.000199,2]
[408142612,1773169846263,-366.86992042,0.000199,2]
[408142613,1773169846272,-4591.0,0.000199,2]
[408142614,1773169846282,-533.34,0.00019902,2]
[408142615,1773169846291,-708.05,0.00019902,2]
[408142616,1773169846300,-666.0,0.0001992,2]
[408142617,1773169846308,-1000.0,0.00019921,2]
[408142618,1773169846318,-1000.0,0.00019921,2]
[408142619,1773169846327,-1000.0,0.00019921,2]
[408142620,1773169846336,-150.0,0.00019921,2]
[408142621,1773169846345,-1000.0,0.00019921,2]
[408142622,1773169846354,-283.50907219,0.00019921,2]
[408142623,1773169846364,-1000.0,0.00019921,2]
[408142624,1773169846374,-1000.0,0.00019921,2]
[408142625,1773169846383,-1000.0,0.00019921,2]
[408142626,1773169846392,-1000.0,0.00019921,2]
[408142627,1773169846401,-1000.0,0.00019921,2]
[408142628,1773169846411,-1000.0,0.00019921,2]
[408142629,1773169846420,-1000.0,0.00019921,2]
[408142630,1773169846429,-1000.0,0.00019921,2]
[408142631,1773169846438,-1000.0,0.00019921,2]
[408142632,1773169846447,-401.25902058,0.00019921,2]
[408142633,1773169846456,-1000.0,0.00019921,2]
[408142634,1773169846465,-596.36617318,0.00019921,2]
[408142635,1773169846474,-1000.0,0.00019921,2]
[408142636,1773169846484,-1000.0,0.00019921,2]
[408142637,1773169846493,-1000.0,0.00019921,2]
[408142638,1773169846502,-1000.0,0.00019921,2]
[408142639,1773169846511,-1000.0,0.00019921,2]
[408142640,1773169846521,-1000.0,0.00019921,2]
[408142641,1773169846530,-605.45252019,0.00019921,2]
[408142642,1773169846540,-1000.0,0.00019921,2]
[408142643,1773169846549,-1000.0,0.00019921,2]
[408142644,1773169846558,-302.15345577,0.00019921,2]
[408142645,1773169846567,-1000.0,0.00019921,2]
[408142646,1773169846576,-1000.0,0.00019921,2]
[408142647,1773169846587,-1000.0,0.00019921,2]
[408142648,1773169846597,-1000.92260886,0.00019921,2]
[408142649,1773169846606,-1000.0,0.00019921,2]
[408142650,1773169846615,-1000.0,0.00019921,2]
[408142651,1773169846627,-1000.0,0.00019921,2]
[408142652,1773169846636,-250.0,0.00019921,2]
[408142653,1773169846645,-1000.0,0.00019921,2]
[408142654,1773169846656,-1000.0,0.00019921,2]
[408142655,1773169846668,-1000.0,0.00019921,2]
[408142656,1773169846678,-1000.0,0.00019921,2]
[408142657,1773169846687,-558.85528432,0.00019921,2]
[408142658,1773169846697,-1000.0,0.00019921,2]
[408142659,1773169846706,-575.55800162,0.00019921,2]
[408142660,1773169846715,-500.0,0.00019921,2]
[408142661,1773169846724,-500.0,0.00019921,2]
[408142662,1773169846734,-500.0,0.00019921,2]
[408142663,1773169846743,-500.0,0.00019921,2]
[408142664,1773169846753,-500.0,0.00019921,2]
[408142665,1773169846763,-500.0,0.00019921,2]
[408142666,1773169846772,-500.0,0.00019921,2]
[408142667,1773169846783,-500.0,0.00019921,2]
[408142668,1773169846792,-500.0,0.00019921,2]
[408142669,1773169846801,-250.0,0.0001993,2]
[408142670,1773169846810,-250.0,0.00019941,2]
[408142671,1773169846819,-1145.70783,0.0001995,2]
[408142672,1773169846829,-500.0,0.00019973,2]
[408142673,1773169846838,-500.0,0.00019973,2]
[408142674,1773169846849,-164.68602851,0.00019973,2]
[408142675,1773169846860,-500.0,0.00019973,2]
[408142676,1773169846869,-250.0,0.00019973,2]
[408142677,1773169846879,-300.0,0.00019979,2]
[408142678,1773169846889,-666.0,0.00019979,2]
[408142679,1773169846898,-118922.92157781,0.0001998,2]
[408142680,1773169846908,-168.0,0.00019984,2]
[408142681,1773169846917,-215.0,0.00019989,2]
[408142682,1773169846926,-857.30624689,0.0001999,2]
[408142683,1773169846935,-151.0,0.00019997,2]
[408142684,1773169846944,-151.0,0.00019997,2]
[408142685,1773169846953,-300.0,0.00019998,2]
[408142686,1773169846962,-300.0,0.00019998,2]
[408142687,1773169846972,-666.0,0.00019998,2]
[408142688,1773169846982,-300.0,0.00019999,2]
[408142689,1773169846991,-700.9335269,0.00019999,2]
[408142690,1773169847001,-2203.3302537,0.00019999,2]
[408142691,1773169847011,-155.0,0.00019999,2]
[408142692,1773169847021,-533.34,0.00019999,2]
[408142693,1773169847030,-533.34,0.00019999,2]
[408142694,1773169847039,-533.34,0.00019999,2]
[408142695,1773169847049,-533.34,0.00019999,2]
[408142696,1773169847057,-533.34,0.00019999,2]
[408142697,1773169847066,-533.34,0.00019999,2]
[408142698,1773169847075,-533.46,0.00019999,2]
[408142699,1773169847084,-64067.846006,0.00019999,2]
[408142700,1773169847093,-500.0,0.00019999,2]
[408142701,1773169847103,-500.0,0.00019999,2]
[408142702,1773169847114,-500.0,0.00019999,2]
[408142703,1773169847124,-500.0,0.00019999,2]
[408142704,1773169847133,-486.6,0.00019999,2]
[408142705,1773169847142,-1254.4180869,0.00019999,2]
[408142706,1773169847151,-33196.02130339,0.00019999,2]
[408142707,1773169847160,-333213.1389873,0.00019999,2]
[408142708,1773169847169,-941.94,0.00019999,2]
[408142709,1773169847177,-941.94,0.00019999,2]
[408142710,1773169847186,-941.94,0.00019999,2]
[408142711,1773169847195,-941.94,0.00019999,2]
[408142712,1773169847203,-941.94,0.00019999,2]
[408142713,1773169847212,-941.94,0.00019999,2]
[408142714,1773169847221,-941.94,0.00019999,2]
[408142715,1773169847230,-941.94,0.00019999,2]
[408142716,1773169847239,-941.94,0.00019999,2]
[408142717,1773169847248,-941.97738242,0.00019999,2]
[408142718,1773169847257,-3000.0,0.00019999,2]
[408142719,1773169847267,-3000.0,0.00019999,2]
[408142720,1773169847276,-3000.0,0.00019999,2]
[408142721,1773169847286,-3000.0,0.00019999,2]
[408142722,1773169847295,-3000.0,0.00019999,2]
[408142723,1773169847305,-3000.0,0.00019999,2]
[408142724,1773169847314,-3000.0,0.00019999,2]
[408142725,1773169847323,-2039.62924179,0.00019999,2]
[408142726,1773169847333,-2074995.10870488,0.0002,2]
[408142727,1773169847360,-3064470.75558398,0.0002,2]
[408142728,1773169847580,-165.66906522,0.0002,2]
[408142729,1773169847595,-459.74084347,0.0002,2]
[408142730,1773169847614,-16620.27,0.0002,2]
[408142731,1773169847718,-3568.01656786,0.00015836,2]
[408142732,1773169847730,-300.72621915,0.00015836,2]
[408142735,1773170712946,684.18,0.00019,120]
[408142738,1773170918761,-200.0,0.00014262,2]
[408142739,1773170918793,-4411.10092787,0.0001427,2]
[408142740,1773170918826,-300.0,0.00014279,2]
[408142741,1773170918858,-600.0,0.00014297,2]
[408142742,1773170919306,-300.0,0.00014319,2]
[408142743,1773170919340,-250.0,0.00014333,2]
[408142744,1773170919372,-600.0,0.00014349,2]
[408142745,1773170919404,-300.0,0.00014352,2]
[408142746,1773170919439,-500.0,0.00014388,2]
[408142747,1773170919472,-268.19081318,0.00014388,2]
[408142748,1773170919505,-250.0,0.00014412,2]
[408142749,1773170919540,-150.0,0.0001443,2]